fUST/lending_fUST_20250918
["ID","MTS","AMOUNT","RATE_DAILY","PERIOD"]
[385923494,1758135756931,3459.06110144,0.00023155,2]
[385923495,1758135765687,151.0,0.00022,10]
[385923496,1758135766937,3081.88779712,0.00023161,2]
[385923497,1758135766959,377.17330432,0.00023161,2]
[385923498,1758135794684,153.0,0.00027808,30]
[385923499,1758135833828,244.703012,0.00022273,2]
[385923500,1758135853485,153.0,0.00027726,30]
[385923501,1758135914416,153.0,0.00027945,30]
[385923502,1758135974762,153.0,0.00027808,30]
[385923503,1758135989121,1000.0,0.00023161,2]
[385923504,1758135990206,1000.0,0.00023161,2]
[385923505,1758135991280,1000.0,0.00023161,2]
[385923506,1758136007112,-178.66171209,0.00023183,2]
[385923507,1758136007135,-178.66171206,0.00023205,2]
[385923508,1758136007158,-178.66171206,0.00023227,2]
[385923509,1758136007177,-178.66171206,0.00023249,2]
[385923510,1758136007202,-200.0,0.00023249,2]
[385923511,1758136007223,-210.0,0.0002327,2]
[385923512,1758136007243,-300.0,0.0002327,2]
[385923513,1758136007263,-841.0,0.00023271,2]
[385923514,1758136007284,-300.0,0.00023271,2]
[385923515,1758136007305,-272.0,0.00023271,2]
[385923516,1758136007326,-11688.31891573,0.00023272,2]
[385923517,1758136035419,153.0,0.00027808,30]
[385923518,1758136094591,153.0,0.00028,30]
[385923519,1758136123282,310.07,0.00023,6]
[385923520,1758136127651,5000.0,0.0002322,10]
[385923521,1758136140036,5000.0,0.0002317,2]
[385923522,1758136154960,153.0,0.00028,30]
[385923523,1758136169345,1068.06368368,0.0002317,2]
[385923524,1758136169367,3931.93631632,0.0002317,2]
[385923526,1758136196416,746.11066593,0.00022137,2]
[385923527,1758136198435,2999.9,0.00028,30]
[385923528,1758136198877,2981.45822107,0.00022137,2]
[385923529,1758136213727,153.0,0.00027726,30]
[385923583,1758136237635,-1118.12131039,0.00023187,2]
[385923584,1758136237647,-456.47960642,0.00023187,2]
[385923585,1758136237659,-4143.24961151,0.00023187,2]
[385923586,1758136237668,-300.0,0.0002327,2]
[385923587,1758136237678,-300.0,0.0002327,2]
[385923588,1758136237688,-1200.0,0.0002327,2]
[385923590,1758136237699,-427.08226471,0.00023271,3]
[385923591,1758136237708,-480.0,0.00023271,3]
[385923611,1758136237924,-480.0,0.00023271,3]
[385923614,1758136237935,-480.0,0.00023271,3]
[385923617,1758136237944,-297.56605416,0.00023271,3]
[385923620,1758136237954,-751.82,0.00023271,3]
[385923623,1758136237964,-480.0,0.00023271,3]
[385923626,1758136237974,-480.0,0.00023272,3]
[385923628,1758136237984,-500.0,0.00023273,2]
[385923630,1758136237993,-500.0,0.00023273,2]
[385923632,1758136238003,-500.0,0.00023273,2]
[385923634,1758136238013,-28100.8723593,0.00023273,2]
[385923636,1758136238023,-263.6,0.00023275,3]
[385923638,1758136238033,-432.25,0.00023275,3]
[385923640,1758136238043,-216.13,0.00023275,3]
[385923642,1758136238052,-648.4,0.00023275,3]
[385923644,1758136238062,-500.0,0.00023281,2]
[385923646,1758136238071,-500.0,0.00023281,2]
[385923648,1758136238081,-516.4250078,0.00023281,2]
[385923650,1758136238090,-487.2208223,0.00023282,3]
[385923652,1758136238100,-605.58,0.00023282,3]
[385923654,1758136238110,-481.68182864,0.00023282,3]
[385923656,1758136238119,-480.0,0.00023282,3]
[385923658,1758136238129,-480.0,0.00023282,3]
[385923660,1758136238139,-480.0,0.00023282,3]
[385923662,1758136238148,-480.0,0.00023282,3]
[385923664,1758136238157,-480.0,0.00023282,3]
[385923666,1758136238167,-480.0,0.00023282,3]
[385923667,1758136238176,-480.0,0.00023282,3]
[385923669,1758136238186,-480.0,0.00023282,3]
[385923671,1758136238195,-480.0,0.00023282,3]
[385923673,1758136238205,-480.0,0.00023282,3]
[385923675,1758136238214,-1007.4,0.00023282,3]
[385923677,1758136238224,-480.0,0.00023282,3]
[385923679,1758136238233,-480.0,0.00023282,3]
[385923681,1758136238242,-480.0,0.00023282,3]
[385923683,1758136238251,-480.0,0.00023282,3]
[385923685,1758136238261,-480.0,0.00023282,3]
[385923687,1758136238270,-475.24857767,0.00023282,3]
[385923689,1758136238279,-480.0,0.00023282,3]
[385923691,1758136238289,-480.0,0.00023282,3]
[385923693,1758136238299,-480.0,0.00023282,3]
[385923695,1758136238308,-480.0,0.00023282,3]
[385923697,1758136238318,-628.37,0.00023282,3]
[385923699,1758136238327,-480.0,0.00023282,3]
[385923702,1758136238336,-480.0,0.00023282,3]
[385923704,1758136238345,-873.36,0.00023282,3]
[385923706,1758136238354,-480.0,0.00023282,3]
[385923708,1758136238363,-480.0,0.00023282,3]
[385923709,1758136238375,-480.0,0.00023282,3]
[385923711,1758136238385,-217.90857035,0.00023282,3]
[385923714,1758136238402,-480.0,0.00023282,3]
[385923716,1758136238413,-480.0,0.00023283,3]
[385923718,1758136238422,-480.0,0.00023283,3]
[385923720,1758136238432,-480.0,0.00023283,3]
[385923722,1758136238441,-480.0,0.00023283,3]
[385923724,1758136238451,-481.37,0.00023283,3]
[385923726,1758136238460,-480.0,0.00023283,3]
[385923728,1758136238470,-625.1119148,0.00023283,3]
[385923730,1758136238479,-480.0,0.00023283,3]
[385923732,1758136238490,-480.0,0.00023283,3]
[385923734,1758136238499,-480.0,0.00023283,3]
[385923736,1758136238509,-480.0,0.00023283,3]
[385923738,1758136238519,-480.0,0.00023283,3]
[385923740,1758136238529,-480.0,0.00023283,3]
[385923742,1758136238539,-480.0,0.00023283,3]
[385923744,1758136238548,-480.0,0.00023283,3]
[385923746,1758136238558,-480.97931472,0.00023283,3]
[385923748,1758136238568,-335.74565639,0.00023283,3]
[385923750,1758136238579,-480.0,0.00023283,3]
[385923752,1758136238588,-480.0,0.00023283,3]
[385923754,1758136238598,-516.66,0.00023283,3]
[385923756,1758136238607,-480.0,0.00023283,3]
[385923758,1758136238616,-520.13868197,0.00023283,3]
[385923760,1758136238627,-480.0,0.00023283,3]
[385923762,1758136238636,-480.0,0.00023283,3]
[385923764,1758136238645,-596.62,0.00023283,3]
[385923766,1758136238655,-480.0,0.00023283,3]
[385923768,1758136238664,-480.0,0.00023283,3]
[385923770,1758136238673,-480.0,0.00023283,3]
[385923772,1758136238683,-480.0,0.00023283,3]
[385923774,1758136238698,-480.0,0.00023283,3]
[385923776,1758136238716,-480.0,0.00023283,3]
[385923778,1758136238738,-442.20978828,0.00023283,3]
[385923780,1758136238750,-1215.82,0.00023283,3]
[385923782,1758136238760,-481.50675647,0.00023283,3]
[385923784,1758136238770,-480.0,0.00023283,3]
[385923786,1758136238780,-480.0,0.00023283,3]
[385923788,1758136238789,-480.0,0.00023283,3]
[385923790,1758136238798,-480.0,0.00023283,3]
[385923792,1758136238807,-402.83693563,0.00023283,3]
[385923794,1758136238817,-480.0,0.00023283,3]
[385923796,1758136238826,-480.0,0.00023283,3]
[385923798,1758136238835,-502.33719935,0.00023283,3]
[385923800,1758136238845,-481.65757618,0.00023283,3]
[385923802,1758136238854,-480.0,0.00023283,3]
[385923804,1758136238863,-480.0,0.00023283,3]
[385923806,1758136238874,-480.0,0.00023283,3]
[385923807,1758136238883,-482.19469516,0.00023283,3]
[385923809,1758136238892,-480.91245223,0.00023283,3]
[385923811,1758136238901,-480.0,0.00023283,3]
[385923813,1758136238911,-481.43406646,0.00023283,3]
[385923815,1758136238920,-480.0,0.00023283,3]
[385923817,1758136238929,-480.0,0.00023283,3]
[385923819,1758136238939,-480.0,0.00023283,3]
[385923821,1758136238948,-480.0,0.00023283,3]
[385923823,1758136238958,-358.75043891,0.00023283,3]
[385923825,1758136238967,-480.0,0.00023283,3]
[385923827,1758136238976,-480.0,0.00023283,3]
[385923829,1758136238986,-480.0,0.00023283,3]
[385923831,1758136238996,-673.86,0.00023283,3]
[385923833,1758136239005,-480.0,0.00023283,3]
[385923835,1758136239015,-480.0,0.00023283,3]
[385923837,1758136239025,-480.0,0.00023283,3]
[385923839,1758136239035,-480.0,0.00023283,3]
[385923841,1758136239044,-480.0,0.00023283,3]
[385923843,1758136239054,-480.0,0.00023283,3]
[385923845,1758136239063,-480.0,0.00023283,3]
[385923847,1758136239071,-480.0,0.00023283,3]
[385923849,1758136239081,-496.08665119,0.00023283,3]
[385923851,1758136239090,-480.0,0.00023283,3]
[385923853,1758136239099,-480.0,0.00023283,3]
[385923855,1758136239108,-480.0,0.00023283,3]
[385923857,1758136239117,-480.0,0.00023283,3]
[385923859,1758136239128,-480.0,0.00023283,3]
[385923861,1758136239138,-521.3839302,0.00023283,3]
[385923863,1758136239147,-480.0,0.00023283,3]
[385923865,1758136239157,-480.0,0.00023283,3]
[385923867,1758136239166,-480.0,0.00023283,3]
[385923869,1758136239175,-480.0,0.00023283,3]
[385923871,1758136239185,-480.0,0.00023283,3]
[385923873,1758136239195,-480.0,0.00023283,3]
[385923875,1758136239205,-312.39794126,0.00023283,3]
[385923877,1758136239214,-480.0,0.00023283,3]
[385923879,1758136239223,-480.0,0.00023283,3]
[385923881,1758136239232,-160.0,0.00023283,3]
[385923883,1758136239241,-480.0,0.00023283,3]
[385923885,1758136239250,-480.0,0.00023283,3]
[385923887,1758136239259,-480.0,0.00023283,3]
[385923889,1758136239269,-480.0,0.00023283,3]
[385923891,1758136239278,-378.8395807,0.00023283,3]
[385923893,1758136239287,-480.0,0.00023283,3]
[385923894,1758136239296,-480.0,0.00023283,3]
[385923896,1758136239305,-480.0,0.00023283,3]
[385923898,1758136239315,-480.0,0.00023283,3]
[385923900,1758136239324,-480.0,0.00023283,3]
[385923902,1758136239333,-480.0,0.00023283,3]
[385923904,1758136239341,-480.0,0.00023283,3]
[385923906,1758136239350,-480.0,0.00023283,3]
[385923908,1758136239360,-480.0,0.00023283,3]
[385923910,1758136239369,-436.61700864,0.00023283,3]
[385923912,1758136239380,-375.50040517,0.00023283,3]
[385923914,1758136239390,-480.0,0.00023283,3]
[385923916,1758136239402,-480.0,0.00023283,3]
[385923918,1758136239411,-480.0,0.00023283,3]
[385923920,1758136239420,-480.0,0.00023283,3]
[385923922,1758136239429,-480.0,0.00023283,3]
[385923924,1758136239440,-480.0,0.00023283,3]
[385923926,1758136239449,-480.0,0.00023283,3]
[385923928,1758136239458,-480.0,0.00023283,3]
[385923930,1758136239467,-480.0,0.00023283,3]
[385923932,1758136239477,-480.0,0.00023283,3]
[385923934,1758136239487,-480.0,0.00023283,3]
[385923936,1758136239497,-480.0,0.00023283,3]
[385923938,1758136239506,-480.0,0.00023283,3]
[385923940,1758136239515,-480.0,0.00023283,3]
[385923942,1758136239524,-480.0,0.00023283,3]
[385923944,1758136239534,-480.0,0.00023283,3]
[385923946,1758136239543,-480.0,0.00023283,3]
[385923948,1758136239552,-635.91,0.00023283,3]
[385923950,1758136239561,-480.0,0.00023283,3]
[385923952,1758136239570,-480.0,0.00023283,3]
[385923954,1758136239579,-480.0,0.00023283,3]
[385923956,1758136239589,-480.0,0.00023283,3]
[385923958,1758136239598,-466.54942846,0.00023283,3]
[385923960,1758136239607,-480.0,0.00023283,3]
[385923962,1758136239616,-503.8374256,0.00023283,3]
[385923964,1758136239627,-480.0,0.00023283,3]
[385923966,1758136239636,-480.0,0.00023283,3]
[385923968,1758136239645,-480.0,0.00023283,3]
[385923970,1758136239655,-480.0,0.00023283,3]
[385923972,1758136239664,-480.0,0.00023283,3]
[385923974,1758136239674,-669.65,0.00023283,3]
[385923976,1758136239683,-480.0,0.00023283,3]
[385923978,1758136239692,-480.0,0.00023283,3]
[385923980,1758136239701,-480.0,0.00023283,3]
[385923982,1758136239710,-480.0,0.00023283,3]
[385923984,1758136239720,-500.0,0.00023283,2]
[385923986,1758136239728,-477.21002103,0.00023283,2]
[385923988,1758136239737,-320.25620568,0.00023283,2]
[385923991,1758136239746,-985.34,0.00023284,3]
[385923993,1758136239754,-480.0,0.00023284,3]
[385923995,1758136239764,-1950.79,0.00023284,3]
[385923997,1758136239773,-591.79,0.00023284,3]
[385923998,1758136239782,-598.77542487,0.00023284,3]
[385923999,1758136239791,-21088.05691466,0.00023285,2]
[385924001,1758136239866,-11900.0,0.00023285,2]
[385924003,1758136239878,-3166.74701552,0.00023285,2]
[385924005,1758136239889,-187178.16879057,0.00023285,2]
[385924007,1758136239898,-3404.32,0.00023287,2]
[385924008,1758136239907,-341.70367976,0.00023302,2]
[385924010,1758136239915,-1365.44790431,0.00023302,2]
[385924012,1758136239924,-199.0,0.00023304,2]
[385924013,1758136239933,-480.0,0.00023349,3]
[385924015,1758136239942,-480.0,0.00023349,3]
[385924016,1758136239951,-480.0,0.00023349,3]
[385924018,1758136239961,-480.0,0.00023349,3]
[385924020,1758136239971,-480.0,0.00023349,3]
[385924021,1758136239980,-480.0,0.00023349,3]
[385924023,1758136239989,-480.0,0.00023349,3]
[385924038,1758136240086,-480.0,0.00023349,3]
[385924041,1758136240096,-480.0,0.00023349,3]
[385924044,1758136240106,-480.0,0.00023349,3]
[385924046,1758136240116,-480.0,0.00023349,3]
[385924050,1758136240128,-480.0,0.00023349,3]
[385924052,1758136240138,-480.0,0.00023349,3]
[385924054,1758136240148,-480.0,0.00023349,3]
[385924057,1758136240158,-480.0,0.00023349,3]
[385924059,1758136240166,-480.0,0.00023349,3]
[385924062,1758136240176,-500.0,0.00023349,3]
[385924065,1758136240184,-480.0,0.00023349,3]
[385924067,1758136240194,-480.0,0.00023349,3]
[385924070,1758136240203,-480.0,0.00023349,3]
[385924072,1758136240213,-480.0,0.00023349,3]
[385924075,1758136240222,-480.0,0.00023349,3]
[385924077,1758136240231,-480.0,0.00023349,3]
[385924080,1758136240242,-480.0,0.00023349,3]
[385924082,1758136240251,-513.66,0.00023349,3]
[385924085,1758136240260,-480.0,0.00023349,3]
[385924088,1758136240269,-480.0,0.00023349,3]
[385924090,1758136240278,-480.0,0.00023349,3]
[385924093,1758136240287,-480.0,0.00023349,3]
[385924095,1758136240296,-480.0,0.00023349,3]
[385924097,1758136240305,-480.0,0.00023349,3]
[385924098,1758136240314,-480.0,0.00023349,3]
[385924100,1758136240322,-480.0,0.00023349,3]
[385924102,1758136240331,-480.0,0.00023349,3]
[385924105,1758136240341,-480.0,0.00023349,3]
[385924108,1758136240350,-480.0,0.00023349,3]
[385924111,1758136240360,-480.0,0.00023349,3]
[385924114,1758136240369,-480.0,0.00023349,3]
[385924117,1758136240381,-480.0,0.00023358,3]
[385924119,1758136240390,-480.0,0.00023358,3]
[385924122,1758136240401,-480.0,0.00023358,3]
[385924125,1758136240410,-480.0,0.00023358,3]
[385924128,1758136240419,-481.02661222,0.00023358,3]
[385924131,1758136240428,-480.0,0.00023358,3]
[385924133,1758136240437,-480.0,0.00023358,3]
[385924136,1758136240446,-480.0,0.00023358,3]
[385924139,1758136240456,-480.0,0.00023358,3]
[385924142,1758136240465,-596.32,0.00023358,3]
[385924146,1758136240476,-480.0,0.00023358,3]
[385924148,1758136240485,-480.0,0.00023358,3]
[385924151,1758136240494,-509.88,0.00023358,3]
[385924154,1758136240503,-480.0,0.00023358,3]
[385924157,1758136240512,-480.0,0.00023358,3]
[385924160,1758136240521,-480.0,0.00023358,3]
[385924163,1758136240530,-480.0,0.00023358,3]
[385924166,1758136240539,-480.0,0.00023358,3]
[385924169,1758136240548,-480.0,0.00023358,3]
[385924171,1758136240557,-480.0,0.00023358,3]
[385924173,1758136240566,-576.17686176,0.00023358,3]
[385924175,1758136240575,-480.0,0.00023358,3]
[385924177,1758136240584,-480.0,0.00023358,3]
[385924179,1758136240592,-480.0,0.00023358,3]
[385924181,1758136240601,-487.66748101,0.00023358,3]
[385924183,1758136240610,-480.0,0.00023358,3]
[385924185,1758136240619,-480.0,0.00023358,3]
[385924186,1758136240628,-481.03632569,0.00023358,3]
[385924188,1758136240637,-480.0,0.00023358,3]
[385924190,1758136240646,-480.0,0.00023358,3]
[385924192,1758136240655,-480.0,0.00023358,3]
[385924194,1758136240664,-480.0,0.00023358,3]
[385924196,1758136240673,-480.0,0.00023358,3]
[385924198,1758136240682,-480.68380741,0.00023358,3]
[385924200,1758136240691,-480.0,0.00023358,3]
[385924202,1758136240700,-480.0,0.00023358,3]
[385924204,1758136240709,-1745.38,0.00023358,3]
[385924206,1758136240718,-480.0,0.00023358,3]
[385924208,1758136240727,-480.0,0.00023358,3]
[385924209,1758136240736,-480.0,0.00023358,3]
[385924211,1758136240745,-617.11,0.00023358,3]
[385924213,1758136240754,-548.11,0.00023358,3]
[385924215,1758136240764,-480.0,0.00023358,3]
[385924217,1758136240773,-480.0,0.00023358,3]
[385924219,1758136240783,-235.25895582,0.00023358,3]
[385924221,1758136240792,-443.56388385,0.00023358,3]
[385924223,1758136240802,-480.0,0.00023358,3]
[385924225,1758136240811,-482.1936996,0.00023358,3]
[385924227,1758136240820,-480.0,0.00023358,3]
[385924229,1758136240829,-480.0,0.00023358,3]
[385924231,1758136240838,-480.0,0.00023358,3]
[385924233,1758136240847,-480.0,0.00023358,3]
[385924235,1758136240856,-481.56089742,0.00023358,3]
[385924237,1758136240865,-480.0,0.00023358,3]
[385924239,1758136240876,-481.55023838,0.00023358,3]
[385924241,1758136240886,-481.96166855,0.00023358,3]
[385924243,1758136240895,-480.0,0.00023358,3]
[385924245,1758136240904,-519.57839725,0.00023358,3]
[385924247,1758136240913,-480.0,0.00023358,3]
[385924249,1758136240923,-480.0,0.00023358,3]
[385924250,1758136240932,-542.59,0.00023358,3]
[385924252,1758136240940,-480.99556131,0.00023358,3]
[385924254,1758136240949,-480.0,0.00023358,3]
[385924256,1758136240958,-481.76156804,0.00023358,3]
[385924258,1758136240967,-480.0,0.00023358,3]
[385924260,1758136240977,-500.0,0.00023358,3]
[385924262,1758136240987,-480.0,0.00023358,3]
[385924264,1758136240996,-480.0,0.00023358,3]
[385924266,1758136241005,-480.0,0.00023358,3]
[385924268,1758136241014,-480.0,0.00023358,3]
[385924270,1758136241023,-480.0,0.00023358,3]
[385924272,1758136241032,-480.0,0.00023358,3]
[385924274,1758136241041,-480.0,0.00023358,3]
[385924276,1758136241050,-480.44829401,0.00023358,3]
[385924277,1758136241058,-480.0,0.00023358,3]
[385924279,1758136241068,-480.0,0.00023358,3]
[385924281,1758136241077,-480.0,0.00023358,3]
[385924283,1758136241087,-480.0,0.00023358,3]
[385924285,1758136241098,-480.61776309,0.00023358,3]
[385924287,1758136241109,-480.0,0.00023358,3]
[385924289,1758136241117,-483.71360092,0.00023358,3]
[385924291,1758136241129,-480.0,0.00023358,3]
[385924293,1758136241138,-480.0,0.00023358,3]
[385924295,1758136241147,-480.0,0.00023358,3]
[385924296,1758136241156,-480.0,0.00023358,3]
[385924298,1758136241166,-480.0,0.00023358,3]
[385924300,1758136241175,-227.80998609,0.00023358,3]
[385924302,1758136241184,-543.26,0.00023358,3]
[385924304,1758136241194,-480.0,0.00023358,3]
[385924306,1758136241203,-480.0,0.00023358,3]
[385924308,1758136241212,-480.0,0.00023358,3]
[385924310,1758136241221,-480.0,0.00023358,3]
[385924312,1758136241230,-480.0,0.00023358,3]
[385924314,1758136241239,-153.451161,0.00023358,7]
[385924316,1758136241248,-480.0,0.00023358,3]
[385924318,1758136241256,-480.0,0.00023358,3]
[385924320,1758136241264,-480.0,0.00023358,3]
[385924322,1758136241273,-480.0,0.00023358,3]
[385924323,1758136241282,-509.14282418,0.00023358,3]
[385924325,1758136241292,-480.0,0.00023358,3]
[385924327,1758136241301,-480.0,0.00023358,3]
[385924329,1758136241310,-480.0,0.00023358,3]
[385924331,1758136241319,-481.54088374,0.00023358,3]
[385924333,1758136241329,-480.0,0.00023358,3]
[385924335,1758136241338,-480.0,0.00023358,3]
[385924337,1758136241347,-480.0,0.00023358,3]
[385924339,1758136241356,-480.0,0.00023358,3]
[385924340,1758136241365,-151.0,0.00023358,7]
[385924342,1758136241378,-480.0,0.00023358,3]
[385924344,1758136241391,-151.0,0.00023358,7]
[385924346,1758136241407,-151.357129,0.00023358,7]
[385924348,1758136241417,-500.0,0.00023373,2]
[385924350,1758136241426,-500.0,0.00023373,2]
[385924352,1758136241437,-500.0,0.00023373,2]
[385924354,1758136241447,-500.0,0.00023373,2]
[385924356,1758136241457,-500.0,0.00023373,2]
[385924358,1758136241468,-600.18280296,0.00023376,3]
[385924359,1758136241477,-480.0,0.00023376,3]
[385924361,1758136241487,-480.0,0.00023376,3]
[385924363,1758136241497,-480.0,0.00023376,3]
[385924365,1758136241506,-2988.22,0.00023376,3]
[385924367,1758136241517,-480.0,0.00023376,3]
[385924369,1758136241526,-1250.13,0.00023376,3]
[385924371,1758136241535,-1290.2,0.00023384,3]
[385924373,1758136241544,-480.0,0.00023384,3]
[385924375,1758136241553,-480.0,0.00023384,3]
[385924377,1758136241563,-480.0,0.00023384,3]
[385924379,1758136241573,-480.0,0.00023384,3]
[385924381,1758136241582,-480.0,0.00023384,3]
[385924382,1758136241590,-480.0,0.00023385,3]
[385924384,1758136241599,-480.35894586,0.00023385,3]
[385924386,1758136241608,-480.92284189,0.00023385,3]
[385924388,1758136241617,-480.91258398,0.00023385,3]
[385924390,1758136241631,-481.03028897,0.00023385,3]
[385924392,1758136241640,-480.71256537,0.00023385,3]
[385924394,1758136241648,-481.0781402,0.00023385,3]
[385924395,1758136241658,-589.91824335,0.00023385,3]
[385924397,1758136241667,-233.34517135,0.00023385,3]
[385924399,1758136241677,-480.0,0.00023385,3]
[385924401,1758136241687,-480.0,0.00023385,3]
[385924403,1758136241697,-620.21625522,0.00023385,3]
[385924405,1758136241707,-480.0,0.00023385,3]
[385924407,1758136241716,-480.0,0.00023385,3]
[385924409,1758136241725,-480.0,0.00023385,3]
[385924411,1758136241735,-480.0,0.00023385,3]
[385924413,1758136241744,-509.31083558,0.00023385,3]
[385924415,1758136241754,-480.0,0.00023385,3]
[385924417,1758136241762,-480.0,0.00023385,3]
[385924419,1758136241771,-480.0,0.00023396,2]
[385924420,1758136241780,-151.0,0.000234,5]
[385924422,1758136241790,-151.0,0.00023472,3]
[385924424,1758136241800,-157.0,0.00023472,3]
[385924426,1758136241810,-151.0,0.00023472,3]
[385924428,1758136241820,-151.0,0.00023472,3]
[385924430,1758136241829,-151.0,0.00023472,3]
[385924432,1758136241839,-151.0,0.00023472,3]
[385924434,1758136241848,-151.0,0.00023472,3]
[385924435,1758136241857,-279.9878533,0.00023472,3]
[385924437,1758136241867,-151.0,0.00023472,3]
[385924439,1758136241877,-151.0,0.00023472,3]
[385924441,1758136241886,-151.0,0.00023472,3]
[385924443,1758136241895,-288.60935909,0.00023472,3]
[385924445,1758136241905,-480.0,0.00023545,3]
[385924447,1758136241914,-480.0,0.00023545,3]
[385924449,1758136241923,-480.0,0.00023545,3]
[385924451,1758136241932,-751.82,0.00023545,3]
[385924453,1758136241941,-480.0,0.00023546,3]
[385924454,1758136241950,-480.0,0.00023556,3]
[385924456,1758136241959,-306.34,0.00023556,3]
[385924458,1758136241968,-480.0,0.00023556,3]
[385924460,1758136241978,-1007.4,0.00023556,3]
[385924462,1758136241987,-480.0,0.00023556,3]
[385924464,1758136241996,-480.0,0.00023556,3]
[385924466,1758136242006,-480.0,0.00023556,3]
[385924468,1758136242015,-480.0,0.00023556,3]
[385924470,1758136242024,-480.0,0.00023556,3]
[385924472,1758136242033,-480.0,0.00023556,3]
[385924474,1758136242042,-628.37,0.00023556,3]
[385924476,1758136242051,-480.0,0.00023556,3]
[385924478,1758136242060,-873.36,0.00023556,3]
[385924480,1758136242069,-480.0,0.00023556,3]
[385924490,1758136242157,-480.0,0.00023556,3]
[385924492,1758136242167,-480.0,0.00023556,3]
[385924494,1758136242176,-480.0,0.00023556,3]
[385924495,1758136242186,-480.0,0.00023557,3]
[385924497,1758136242195,-480.0,0.00023557,3]
[385924499,1758136242206,-476.79,0.00023557,3]
[385924501,1758136242216,-250.95,0.00023557,3]
[385924503,1758136242225,-165.49792862,0.00023557,3]
[385924505,1758136242234,-480.0,0.00023557,3]
[385924507,1758136242244,-482.87,0.00023557,3]
[385924509,1758136242253,-480.0,0.00023557,3]
[385924511,1758136242262,-480.0,0.00023557,3]
[385924513,1758136242271,-591.28652004,0.00023557,3]
[385924515,1758136242279,-480.0,0.00023557,3]
[385924516,1758136242288,-480.0,0.00023557,3]
[385924518,1758136242296,-1215.82,0.00023557,3]
[385924520,1758136242306,-317.29334356,0.00023557,3]
[385924522,1758136242315,-175.78,0.00023557,3]
[385924524,1758136242325,-480.0,0.00023557,3]
[385924525,1758136242333,-427.41755819,0.00023557,3]
[385924527,1758136242343,-480.0,0.00023557,3]
[385924529,1758136242352,-480.0,0.00023557,3]
[385924531,1758136242361,-528.61,0.00023557,3]
[385924533,1758136242370,-480.0,0.00023557,3]
[385924535,1758136242381,-480.0,0.00023557,3]
[385924537,1758136242393,-480.0,0.00023557,3]
[385924539,1758136242403,-480.0,0.00023557,3]
[385924541,1758136242412,-673.86,0.00023557,3]
[385924543,1758136242421,-480.0,0.00023557,3]
[385924545,1758136242431,-480.0,0.00023557,3]
[385924547,1758136242440,-480.0,0.00023557,3]
[385924549,1758136242450,-480.0,0.00023557,3]
[385924551,1758136242459,-480.0,0.00023557,3]
[385924552,1758136242469,-480.0,0.00023557,3]
[385924554,1758136242479,-480.0,0.00023557,3]
[385924556,1758136242488,-480.0,0.00023557,3]
[385924558,1758136242497,-480.0,0.00023557,3]